fUSD/lending_fUSD_20251017
["ID","MTS","AMOUNT","RATE_DAILY","PERIOD"]
[391712156,1760739073259,-500.0,0.00044931,120]
[391712157,1760739073269,-150.0,0.00044943,30]
[391712158,1760739073278,-151.0,0.00044945,120]
[391712159,1760739073287,-151.0,0.00044945,120]
[391712160,1760739073297,-151.0,0.00044945,120]
[391712161,1760739073306,-151.0,0.00044945,120]
[391712162,1760739073317,-150.0,0.00044947,30]
[391712163,1760739073327,-150.0,0.00044949,30]
[391712164,1760739073336,-167.42568727,0.00044966,30]
[391712165,1760739073346,-321.39517214,0.00044966,30]
[391712166,1760739073356,-150.0,0.0004497,30]
[391712167,1760739073366,-1220.0091854,0.00044971,45]
[391712168,1760739073375,-700.0,0.0004499,120]
[391712169,1760739073384,-500.0,0.0004499,120]
[391712170,1760739073394,-10420.7,0.0004499,120]
[391712171,1760739073403,-150.0,0.0004499,120]
[391712172,1760739073413,-150.0,0.0004499,120]
[391712173,1760739073423,-151.0,0.0004499,120]
[391712174,1760739073432,-151.0,0.0004499,15]
[391712175,1760739073442,-151.0,0.0004499,15]
[391712176,1760739073451,-151.0,0.0004499,120]
[391712177,1760739073461,-151.0,0.0004499,120]
[391712178,1760739073471,-195.451081,0.0004499,120]
[391712179,1760739073481,-151.0,0.0004499,120]
[391712180,1760739073490,-151.0,0.0004499,120]
[391712181,1760739073499,-151.0,0.0004499,120]
[391712182,1760739073509,-151.0,0.0004499,120]
[391712183,1760739073519,-151.0,0.0004499,120]
[391712184,1760739073529,-151.0,0.0004499,120]
[391712185,1760739073538,-151.0,0.0004499,120]
[391712186,1760739073548,-151.0,0.0004499,120]
[391712187,1760739073558,-197.521142,0.0004499,120]
[391712188,1760739073568,-151.0,0.0004499,120]
[391712189,1760739073578,-151.0,0.0004499,120]
[391712190,1760739073587,-151.0,0.0004499,120]
[391712191,1760739073597,-150.0,0.00044992,30]
[391712192,1760739073607,-1000.0,0.00044999,120]
[391712193,1760739073616,-500.0,0.00044999,120]
[391712194,1760739073626,-500.0,0.00044999,120]
[391712195,1760739073636,-500.0,0.00044999,120]
[391712196,1760739073645,-500.0,0.00044999,120]
[391712197,1760739073654,-50000.0,0.00045,55]
[391712198,1760739073663,-50000.0,0.00045,75]
[391712199,1760739073673,-34857.97,0.00045,120]
[391712200,1760739073682,-7072.8,0.00045,120]
[391712201,1760739073692,-424.0,0.00045,120]
[391712202,1760739073701,-600.0,0.00045,120]
[391712203,1760739073711,-30354.19168041,0.00045,2]
[391712204,1760739073721,-1001.06401798,0.00045,120]
[391712205,1760739073731,-2387.79226536,0.00045,14]
[391712206,1760739073742,-2055.52538665,0.00045,60]
[391712207,1760739073751,-164.89621663,0.00045,120]
[391712208,1760739073761,-531.90565196,0.00045,120]
[391712209,1760739073770,-20164.64830798,0.00045,120]
[391712210,1760739073779,-47488.29137284,0.00045,120]
[391712211,1760739073789,-1109.32432704,0.00045,32]
[391712212,1760739073798,-2001.49566826,0.00045,120]
[391712213,1760739073808,-1190.62575876,0.00045,120]
[391712214,1760739073818,-2693.74738169,0.00045,120]
[391712215,1760739073827,-604.30405012,0.00045,10]
[391712216,1760739073837,-1015.92,0.00045,120]
[391712217,1760739073941,-200.0,0.00045,120]
[391712218,1760739073957,-151899.71326189,0.00045,120]
[391712219,1760739074147,-3150.0,0.00045,120]
[391712220,1760739074160,-63455.28623518,0.00045,120]
[391712221,1760739074171,-5693.3,0.00045,120]
[391712222,1760739074183,-1170.3,0.00045,120]
[391712223,1760739074195,-2714.87653724,0.00045,120]
[391712224,1760739074206,-883.38650708,0.00045,120]
[391712225,1760739074217,-364.13,0.00045,120]
[391712226,1760739074233,-548.0,0.00041465,2]
[391712227,1760739074243,-551.12008855,0.00045,120]
[391712228,1760739074254,-496.4562795,0.00045,120]
[391712229,1760739074266,-57384.99999999,0.00045,120]
[391712230,1760739074277,-279.38500001,0.00045,120]
[391712231,1760739074289,-878.27709449,0.00045,120]
[391712232,1760739074300,-11166.02067199,0.00045,120]
[391712233,1760739074319,-500.0,0.00044999,120]
[391712234,1760739074328,-557.4054,0.00045,120]
[391712235,1760739074340,-3975.2999986,0.00045,120]
[391712236,1760739074351,-505.4818,0.00045,120]
[391712237,1760739074363,-1205.81483454,0.00045,120]
[391712238,1760739074375,-503.192478,0.00045,120]
[391712239,1760739074386,-1663.9492205,0.00045,120]
[391712240,1760739074398,-35928.19527505,0.00045,120]
[391712241,1760739074790,-160.0,0.00017,3]
[391712242,1760739074799,-153.0,0.0002883,2]
[391712243,1760739074808,-153.0,0.0002883,2]
[391712244,1760739074817,-153.0,0.0002883,2]
[391712245,1760739074826,-153.0,0.0002883,2]
[391712246,1760739074834,-159.03138802,0.00031428,15]
[391712247,1760739074844,-486.18493156,0.0004152,2]
[391712260,1760739367044,200.0,0.00032083,120]
[391712269,1760739660897,200.0,0.00032127,120]
[391712284,1760739801617,1120.62,0.00025864,120]
[391712289,1760739901792,196.4,0.00012,2]
[391712329,1760740232294,-1286.726958,0.0001421,7]
[391712330,1760740232303,-173.64098352,0.00014898,2]
[391712331,1760740232313,-706.27873623,0.000149,2]
[391712332,1760740232322,-161.28311447,0.000149,2]
[391712333,1760740232331,-237.90843758,0.000149,2]
[391712334,1760740232340,-1200.0,0.00014972,2]
[391712335,1760740232349,-500.0,0.00014973,2]
[391712336,1760740232359,-471.79906783,0.00014973,2]
[391712337,1760740232368,-500.0,0.00014973,2]
[391712338,1760740232377,-508.90027563,0.00014973,2]
[391712339,1760740232386,-500.0,0.00014973,2]
[391712340,1760740232395,-273.34632816,0.0001499,2]
[391712341,1760740232405,-273.34632816,0.0001499,2]
[391712342,1760740232417,-300.0,0.00014997,2]
[391712343,1760740232427,-151.0,0.00014997,2]
[391712344,1760740232436,-1200.0,0.00014998,2]
[391712345,1760740232446,-150.0,0.00014998,2]
[391712346,1760740232455,-1000.0,0.00014999,2]
[391712347,1760740232465,-500.0,0.00014999,2]
[391712348,1760740232474,-157.43725332,0.00014999,2]
[391712349,1760740232483,-553.29705854,0.00014999,2]
[391712350,1760740232493,-249.88839446,0.00014999,2]
[391712351,1760740232502,-178.92588708,0.00014999,2]
[391712352,1760740232511,-500.0,0.00014999,2]
[391712353,1760740232520,-306.9316284,0.00014999,2]
[391712354,1760740232529,-500.0,0.00014999,2]
[391712355,1760740232538,-500.0,0.00014999,2]
[391712356,1760740232548,-500.0,0.00014999,2]
[391712357,1760740232557,-500.0,0.00014999,2]
[391712358,1760740232566,-500.0,0.00014999,2]
[391712359,1760740232575,-500.0,0.00014999,2]
[391712360,1760740232584,-500.0,0.00014999,2]
[391712361,1760740232764,-500.0,0.00014999,2]
[391712362,1760740232774,-500.0,0.00014999,2]
[391712363,1760740232783,-500.0,0.00014999,2]
[391712364,1760740232793,-500.0,0.00014999,2]
[391712365,1760740232802,-500.0,0.00014999,2]
[391712366,1760740232812,-500.0,0.00014999,2]
[391712367,1760740232821,-500.0,0.00014999,2]
[391712369,1760740232831,-500.0,0.00014999,2]
[391712371,1760740232841,-500.0,0.00014999,2]
[391712373,1760740232850,-500.0,0.00014999,2]
[391712375,1760740232859,-500.0,0.00014999,2]
[391712377,1760740232869,-500.0,0.00014999,2]
[391712379,1760740232878,-500.0,0.00014999,2]
[391712381,1760740232887,-500.0,0.00014999,2]
[391712383,1760740232896,-500.0,0.00014999,2]
[391712385,1760740232906,-500.0,0.00014999,2]
[391712387,1760740232915,-500.0,0.00014999,2]
[391712389,1760740232924,-500.0,0.00014999,2]
[391712391,1760740232933,-317.53293466,0.00014999,2]
[391712393,1760740232942,-500.0,0.00014999,2]
[391712394,1760740232951,-350.0,0.00014999,2]
[391712395,1760740232961,-500.0,0.00014999,2]
[391712396,1760740232969,-136945.6668422,0.00015,2]
[391712397,1760740232982,-877.56,0.00015,2]
[391712398,1760740232993,-255494.07920597,0.00015,2]
[391712399,1760740233008,-313.0,0.00015,2]
[391712400,1760740233031,-2951.793793,0.00015,2]
[391712401,1760740233094,-5932.55622335,0.00015,2]
[391712402,1760740233118,-469.80788766,0.00015,2]
[391712410,1760740238368,-295.03431922,0.000149,2]
[391712411,1760740238379,-578.82779788,0.00015,2]
[391712412,1760740238391,-477.67041061,0.00015,2]
[391712413,1760740238404,-110849.41590159,0.00015,2]
[391712428,1760740240630,-521153.33870385,0.00015,2]
[391712429,1760740240645,-2005.004729,0.00015,2]
[391712430,1760740240670,-1480672.64628395,0.00015,2]
[391712431,1760740240681,-7880.43687719,0.00015,2]
[391712432,1760740240693,-2091666.56199052,0.00015,2]
[391712433,1760740240704,-23157.2743119,0.00015,2]
[391712434,1760740240716,-160.0,0.00015,2]
[391712435,1760740240729,-314.76959173,0.000153,2]
[391712436,1760740240740,-1517.64,0.000153,2]
[391712437,1760740240752,-11306.77536906,0.000154,2]
[391712438,1760740240764,-501.75073774,0.000154,2]
[391712439,1760740240776,-27865.54,0.00015403,2]
[391712440,1760740240787,-1000.0,0.00015521,2]
[391712441,1760740240798,-1000.0,0.00015521,2]
[391712442,1760740240810,-1000.0,0.00015521,2]
[391712443,1760740240822,-1500.0,0.00016068,2]
[391712444,1760740240834,-1500.0,0.00016068,2]
[391712445,1760740240847,-1500.0,0.00016068,2]
[391712446,1760740240859,-255.0,0.00016123,2]
[391712447,1760740240871,-240.87703161,0.00016136,2]
[391712448,1760740240884,-420.0,0.00016413,2]
[391712449,1760740240896,-637.34393449,0.00016438,2]
[391712450,1760740240908,-500.0,0.00016438,2]
[391712451,1760740240921,-162.68,0.0001644,2]
[391712452,1760740240933,-1680.0,0.00016469,2]
[391712453,1760740240945,-300.0,0.00016497,2]
[391712454,1760740240956,-568.0059748,0.00016497,3]
[391712455,1760740240969,-302.47315593,0.00016497,2]
[391712456,1760740240981,-195.0,0.00016497,2]
[391712457,1760740240993,-2500.0,0.00016497,2]
[391712458,1760740241005,-2000.0,0.00016616,2]
[391712459,1760740241016,-2000.0,0.00016616,2]
[391712460,1760740241028,-2000.0,0.00016616,2]
[391712461,1760740241040,-4500.0,0.00017,3]
[391712462,1760740241051,-250.0,0.00017,2]
[391712463,1760740241062,-2500.0,0.00017164,2]
[391712464,1760740241074,-2500.0,0.00017164,2]
[391712465,1760740241086,-2500.0,0.00017164,2]
[391712466,1760740241099,-365.31513949,0.00017272,2]
[391712467,1760740241113,-433.0,0.00017338,2]
[391712468,1760740241124,-1000.53672237,0.00017534,2]
[391712469,1760740241136,-3000.0,0.00017712,2]
[391712470,1760740241148,-1500.0,0.00017712,2]
[391712471,1760740241159,-213.36817373,0.00017869,2]
[391712472,1760740241171,-587.0,0.00017964,2]
[391712473,1760740241181,-172.16017549,0.00017973,2]
[391712474,1760740241191,-500.0,0.00017973,2]
[391712475,1760740241202,-500.0,0.00017973,2]
[391712476,1760740241212,-509.70729923,0.00017973,2]
[391712477,1760740241225,-132638.19510029,0.00018,2]
[391712478,1760740241238,-1175.86919055,0.00018,2]
[391712479,1760740241251,-706.27873618,0.00018015,2]
[391712480,1760740241260,-2351.0,0.00018116,2]
[391712481,1760740241270,-3000.0,0.0001826,2]
[391712482,1760740241280,-490.90628888,0.00018408,2]
[391712483,1760740241290,-1000.0,0.00018521,2]
[391712484,1760740241301,-1000.0,0.00018521,2]
[391712485,1760740241312,-736.0,0.00018628,2]
[391712486,1760740241324,-314.76959168,0.00018756,2]
[391712487,1760740241337,-150.05,0.000188,2]
[391712488,1760740241347,-150.05,0.000188,2]
[391712489,1760740241359,-150.05,0.000188,2]
[391712490,1760740241370,-150.05,0.000188,2]
[391712491,1760740241380,-150.05,0.000188,2]
[391712492,1760740241393,-150.05,0.000188,2]
[391712493,1760740241403,-150.05,0.000188,2]
[391712494,1760740241414,-150.05,0.000188,2]
[391712495,1760740241425,-150.05,0.000188,2]
[391712496,1760740241435,-150.05,0.000188,2]
[391712497,1760740241446,-150.05,0.000188,2]
[391712498,1760740241457,-150.05,0.000188,2]
[391712499,1760740241467,-150.05,0.000188,2]
[391712500,1760740241477,-150.05,0.000188,2]
[391712501,1760740241488,-150.05,0.000188,2]
[391712502,1760740241499,-150.05,0.000188,2]
[391712503,1760740241510,-150.05,0.000188,2]
[391712504,1760740241520,-150.05,0.000188,2]
[391712505,1760740241531,-150.05,0.000188,2]
[391712506,1760740241541,-150.05,0.000188,2]
[391712507,1760740241552,-150.05,0.000188,2]
[391712508,1760740241563,-150.05,0.000188,2]
[391712509,1760740241574,-150.05,0.000188,2]
[391712510,1760740241585,-150.05,0.000188,2]
[391712511,1760740241596,-150.05,0.000188,2]
[391712512,1760740241607,-150.05,0.000188,2]
[391712513,1760740241617,-150.05,0.000188,2]
[391712514,1760740241628,-150.05,0.000188,2]
[391712515,1760740241639,-150.05,0.000188,2]
[391712516,1760740241650,-150.05,0.000188,2]
[391712517,1760740241660,-150.05,0.000188,2]
[391712518,1760740241671,-150.05,0.000188,2]
[391712519,1760740241682,-150.05,0.000188,2]
[391712520,1760740241693,-150.05,0.000188,2]
[391712521,1760740241704,-150.05,0.000188,2]
[391712522,1760740241715,-150.05,0.000188,2]
[391712523,1760740241726,-150.05,0.000188,2]
[391712524,1760740241736,-150.05,0.000188,2]
[391712525,1760740241748,-150.05,0.000188,2]
[391712526,1760740241759,-150.05,0.000188,2]
[391712527,1760740241770,-150.05,0.000188,2]
[391712528,1760740241780,-150.05,0.000188,2]
[391712529,1760740241791,-150.05,0.000188,2]
[391712530,1760740241802,-150.05,0.000188,2]
[391712531,1760740241814,-150.05,0.000188,2]
[391712532,1760740241824,-150.05,0.000188,2]
[391712533,1760740241835,-150.05,0.000188,2]
[391712534,1760740241846,-150.05,0.000188,2]
[391712535,1760740241857,-150.05,0.000188,2]
[391712536,1760740241868,-150.05,0.000188,2]
[391712537,1760740241879,-150.05,0.000188,2]
[391712538,1760740241890,-150.05,0.000188,2]
[391712539,1760740241901,-150.05,0.000188,2]
[391712540,1760740241911,-150.05,0.000188,2]
[391712541,1760740241922,-150.05,0.000188,2]
[391712542,1760740241932,-150.05,0.000188,2]
[391712543,1760740241943,-150.05,0.000188,2]
[391712544,1760740241953,-150.05,0.000188,2]
[391712545,1760740241964,-150.05,0.000188,2]
[391712546,1760740241974,-150.05,0.000188,2]
[391712547,1760740241985,-150.05,0.000188,2]
[391712548,1760740241995,-150.05,0.000188,2]
[391712549,1760740242006,-150.05,0.000188,2]
[391712550,1760740242017,-150.05,0.000188,2]
[391712551,1760740242027,-150.05,0.000188,2]
[391712552,1760740242038,-150.05,0.000188,2]
[391712553,1760740242049,-150.05,0.000188,2]
[391712554,1760740242060,-150.05,0.000188,2]
[391712555,1760740242070,-150.05,0.000188,2]
[391712556,1760740242082,-150.05,0.000188,2]
[391712557,1760740242093,-150.05,0.000188,2]
[391712558,1760740242104,-600.0,0.0001888,2]
[391712559,1760740242116,-23507.52528515,0.00019,2]
[391712560,1760740242126,-2809.48810736,0.00019,2]
[391712561,1760740242137,-300.0,0.00019,2]
[391712562,1760740242148,-1000.0,0.00019068,2]
[391712563,1760740242159,-501.45384956,0.00019068,2]
[391712564,1760740242169,-200.0,0.00019178,2]
[391712565,1760740242179,-500.0,0.00019286,2]
[391712566,1760740242190,-500.0,0.00019286,2]
[391712567,1760740242202,-500.0,0.00019286,2]
[391712568,1760740242213,-500.0,0.00019286,2]
[391712569,1760740242224,-500.0,0.00019286,2]
[391712570,1760740242236,-500.0,0.00019286,2]
[391712571,1760740242246,-500.0,0.00019286,2]
[391712572,1760740242257,-500.0,0.00019286,2]
[391712573,1760740242269,-500.0,0.00019286,2]
[391712574,1760740242279,-500.0,0.00019286,2]
[391712575,1760740242290,-500.0,0.00019286,2]
[391712576,1760740242300,-500.0,0.00019286,2]
[391712577,1760740242311,-500.0,0.00019286,2]
[391712578,1760740242322,-500.0,0.00019286,2]
[391712579,1760740242333,-500.0,0.00019286,2]
[391712580,1760740242345,-500.0,0.00019286,2]
[391712581,1760740242355,-500.0,0.00019286,2]
[391712582,1760740242368,-500.11519838,0.00019286,2]
[391712583,1760740242379,-617.36185836,0.00019544,2]
[391712584,1760740242389,-495.0,0.0001966,2]
[391712585,1760740242399,-250.0,0.00019665,2]
[391712586,1760740242409,-151.0,0.00019788,2]
[391712587,1760740242420,-151.0,0.00019788,2]
[391712588,1760740242431,-151.0,0.00019788,2]
[391712589,1760740242442,-151.0,0.00019788,2]
[391712590,1760740242452,-151.0,0.00019788,2]
[391712591,1760740242462,-151.0,0.00019788,2]
[391712592,1760740242472,-151.0,0.00019788,2]
[391712593,1760740242481,-151.0,0.00019788,2]
[391712594,1760740242490,-151.0,0.00019788,2]
[391712595,1760740242500,-151.0,0.00019788,2]
[391712596,1760740242510,-151.0,0.00019788,2]
[391712597,1760740242519,-151.0,0.00019788,2]
[391712598,1760740242750,-151.0,0.00019788,2]
[391712599,1760740242761,-151.0,0.00019788,2]
[391712600,1760740242771,-151.0,0.00019788,2]
[391712601,1760740242780,-151.0,0.00019788,2]
[391712602,1760740242791,-151.0,0.00019788,2]
[391712603,1760740242802,-151.0,0.00019788,2]
[391712604,1760740242811,-150.05,0.0001979,2]
[391712605,1760740242821,-475.6557911,0.000198,2]
[391712606,1760740242831,-10382.9737119,0.000198,2]
[391712607,1760740242840,-320.97408681,0.00019834,2]
[391712608,1760740242851,-1014.4251423,0.00019834,2]
[391712609,1760740242860,-348.76515838,0.00019834,2]
[391712610,1760740242870,-1000.0,0.00019834,2]
[391712611,1760740242880,-1030.35814271,0.00019834,2]
[391712612,1760740242890,-1000.0,0.00019834,2]
[391712613,1760740242899,-1000.0,0.00019834,2]
[391712614,1760740242911,-1000.0,0.00019834,2]
[391712615,1760740242920,-1000.0,0.00019834,2]
[391712616,1760740242930,-1000.0,0.00019834,2]
[391712617,1760740242940,-1000.0,0.00019834,2]
[391712618,1760740242950,-1000.0,0.00019834,2]
[391712619,1760740242959,-1124.85587665,0.00019834,2]
[391712620,1760740242969,-562.22531569,0.00019834,2]
[391712621,1760740242979,-1000.0,0.00019834,2]
[391712622,1760740242989,-1000.0,0.00019834,2]
[391712623,1760740242999,-400.0,0.00019863,2]
[391712624,1760740243008,-3292.0,0.00019927,2]
[391712625,1760740243018,-500.0,0.00019973,2]
[391712626,1760740243028,-500.0,0.00019973,2]
[391712627,1760740243038,-500.0,0.00019973,2]
[391712628,1760740243048,-500.0,0.00019973,2]
[391712629,1760740243057,-500.0,0.00019973,2]
[391712630,1760740243066,-150.05,0.0001999,2]
[391712632,1760740243076,-150.05,0.0001999,2]
[391712633,1760740243086,-150.05,0.0001999,2]
[391712635,1760740243096,-150.05,0.0001999,2]
[391712637,1760740243106,-10787.32923541,0.0002,2]
[391712639,1760740243116,-1514.95050033,0.0002,2]
[391712640,1760740243125,-25290.54772275,0.0002,2]
[391712642,1760740243135,-4643.90957737,0.0002,2]
[391712644,1760740243145,-12943.89868916,0.0002,5]
[391712648,1760740243155,-8300.0,0.0002,4]
[391712651,1760740243164,-3950.0,0.0002,2]
[391712652,1760740243174,-247.14063731,0.0002,20]
[391712655,1760740243183,-40215.42551848,0.0002,2]
[391712657,1760740243193,-17313.39623738,0.0002,14]
[391712659,1760740243202,-1278.99653528,0.0002,2]
[391712661,1760740243212,-7287.27367177,0.0002,2]
[391712664,1760740243222,-1032.50516839,0.0002,2]
[391712668,1760740243232,-2829.35758789,0.0002,2]
[391712671,1760740243242,-3199.45450017,0.0002,2]
[391712674,1760740243251,-75031.75649326,0.0002,2]
[391712677,1760740243261,-10382.9737119,0.0002,2]
[391712679,1760740243270,-8703.80016432,0.0002,2]
[391712681,1760740243279,-1000.0,0.0002,4]
[391712683,1760740243289,-150.05,0.00020012,2]
[391712684,1760740243298,-1252.0,0.00020022,2]
[391712686,1760740243307,-10382.9737119,0.000202,2]
[391712688,1760740243316,-1500.0,0.00020382,2]
[391712690,1760740243326,-501.33709641,0.00020382,2]
[391712692,1760740243336,-1500.0,0.00020382,2]
[391712693,1760740243345,-1500.0,0.00020382,2]
[391712694,1760740243355,-643.34805477,0.00020382,2]
[391712695,1760740243366,-1500.0,0.00020382,2]
[391712696,1760740243380,-1000.0,0.00020382,2]
[391712697,1760740243389,-1500.0,0.00020382,2]
[391712698,1760740243399,-500.0,0.00020382,2]
[391712699,1760740243408,-10382.9737119,0.000204,2]
[391712700,1760740243419,-1000.0,0.00020521,2]
[391712701,1760740243429,-919.38985717,0.00020521,2]
[391712702,1760740243438,-1000.0,0.00020521,2]
[391712703,1760740243448,-1000.0,0.00020521,2]
[391712704,1760740243457,-1000.0,0.00020521,2]
[391712706,1760740243466,-600.0,0.00020548,2]
[391712707,1760740243475,-10382.9737119,0.000206,2]
[391712709,1760740243484,-744.51058367,0.0002068,2]
[391712711,1760740243494,-150.05,0.0002069,2]
[391712713,1760740243507,-22383.11545876,0.000207,2]
[391712715,1760740243517,-10382.9737119,0.000208,2]
[391712717,1760740243526,-150.05,0.0002084,2]
[391712719,1760740243535,-150.05,0.0002084,2]
[391712721,1760740243544,-77346.38022593,0.0002085,2]
[391712723,1760740243553,-1500.0,0.0002093,2]
[391712724,1760740243562,-1153.59479049,0.0002093,2]
[391712726,1760740243572,-1000.0,0.0002093,2]
[391712728,1760740243581,-500.0,0.0002093,2]
[391712730,1760740243590,-13206.32490655,0.00021,2]
[391712732,1760740243599,-10382.9737119,0.00021,2]
[391712734,1760740243609,-1000.0,0.00021068,2]
[391712736,1760740243619,-1500.0,0.00021068,2]
[391712738,1760740243628,-951.24017531,0.00021068,2]
[391712739,1760740243637,-864.29764002,0.00021068,2]
[391712741,1760740243647,-706.27873618,0.0002113,2]
[391712742,1760740243655,-10382.9737119,0.000212,2]
[391712743,1760740243665,-800.0,0.00021233,2]
[391712744,1760740243674,-150.05,0.0002139,2]
[391712745,1760740243683,-10382.9737119,0.000214,2]
[391712746,1760740243692,-8654.99690734,0.000215,2]
[391712747,1760740243702,-264.0,0.00021537,2]
[391712748,1760740243711,-10382.9737119,0.000217,2]
[391712749,1760740243722,-872.23864693,0.00021816,2]
[391712750,1760740243731,-1000.0,0.00021918,2]
[391712752,1760740243741,-4609.0,0.0002192,2]
[391712754,1760740243750,-151.0,0.00021997,2]
[391712756,1760740243760,-20442.34660286,0.00022,4]
[391712758,1760740243769,-150.05,0.0002209,2]
[391712759,1760740243779,-5133.69,0.000221,7]
[391712760,1760740243788,-314.76959168,0.00022211,2]
[391712761,1760740243797,-1200.0,0.00022603,2]
[391712762,1760740243807,-1000.46477179,0.00022952,2]
[391712763,1760740243816,-1887.53763041,0.00023,2]
[391712764,1760740243827,-1000.0,0.00023042,2]
[391712765,1760740243836,-1887.53763041,0.000232,2]
[391712766,1760740243846,-1400.0,0.00023288,2]
[391712767,1760740243855,-218.25342237,0.00023311,2]
[391712768,1760740243866,-218.25342237,0.00023311,2]
[391712769,1760740243876,-1887.53763041,0.000235,2]
[391712770,1760740243885,-190.69,0.00023549,2]
[391712771,1760740243894,-1887.53763041,0.000237,2]
[391712772,1760740243904,-1887.53763041,0.000239,2]
[391712773,1760740243913,-3295.03621571,0.00023913,2]
[391712774,1760740243923,-150.0,0.00023973,2]
[391712775,1760740243933,-150.15448368,0.00023973,2]
[391712776,1760740243942,-161.38589304,0.00023973,2]
[391712777,1760740243952,-200.0,0.00023973,2]
[391712778,1760740243961,-273.34632816,0.0002399,2]
[391712779,1760740243970,-150.05,0.0002399,2]
[391712780,1760740243980,-150.05,0.0002399,2]
[391712781,1760740243989,-150.05,0.0002399,2]
[391712782,1760740243999,-150.05,0.0002399,2]
[391712783,1760740244008,-150.05,0.0002399,2]
[391712784,1760740244018,-150.05,0.0002399,2]
[391712785,1760740244027,-150.05,0.0002399,2]
[391712786,1760740244037,-150.05,0.0002399,2]
[391712787,1760740244047,-150.05,0.0002399,2]
[391712788,1760740244056,-150.05,0.0002399,2]
[391712789,1760740244065,-95963.2637978,0.00024,2]
[391712790,1760740244075,-1007.02647047,0.00024,2]
[391712791,1760740244085,-482085.25019092,0.00024,2]
[391712792,1760740244095,-770.50513425,0.00024,2]
[391712793,1760740244104,-3600.0,0.00024,2]
[391712794,1760740244114,-461.97165921,0.00024,2]
[391712795,1760740244123,-390.296706,0.00024,2]
[391712796,1760740244133,-15993.06308029,0.00024,2]
[391712797,1760740244142,-151.0,0.00024,7]
[391712798,1760740244152,-151.0,0.00024,7]
[391712799,1760740244161,-240.586526,0.00024,7]
[391712800,1760740244171,-262.18,0.00024,7]
[391712801,1760740244180,-151.0,0.00024,7]
[391712802,1760740244189,-151.0,0.00024,7]
[391712803,1760740244199,-151.0,0.00024,7]
[391712804,1760740244210,-171.539994,0.00024,7]
[391712805,1760740244219,-151.0,0.00024,7]
[391712806,1760740244228,-171.539994,0.00024,7]
[391712807,1760740244238,-745.261147,0.00024,7]
[391712808,1760740244247,-154.162599,0.00024,7]
[391712809,1760740244257,-171.539994,0.00024,7]
[391712810,1760740244267,-745.261147,0.00024,7]
[391712811,1760740244276,-151.0,0.00024,7]
[391712812,1760740244286,-151.0,0.00024,7]
[391712813,1760740244295,-171.539994,0.00024,7]
[391712814,1760740244304,-745.261147,0.00024,7]
[391712815,1760740244314,-151.0,0.00024,7]
[391712816,1760740244323,-745.261147,0.00024,7]
[391712817,1760740244333,-152.92835,0.00024,7]
[391712818,1760740244343,-151.0,0.00024,7]
[391712819,1760740244352,-151.0,0.00024,7]
[391712820,1760740244361,-235.045504,0.00024,7]
[391712821,1760740244370,-151.0,0.00024,7]